bitfinex/quotes_SOLUSD_20250406
["timestamp","ask_amount","ask_price","bid_price","bid_amount"]
[1743923283022,23.14559477,119.31,119.3,0.48948471]
[1743923283807,24.80429477,119.31,119.24,18.93171011]
[1743923284115,16.77859477,119.26,119.25,26.21181043]
[1743923284309,16.77859477,119.26,119.25,26.49613357]
[1743923285829,17.27859477,119.26,119.25,0.14216157]
[1743923286207,17.27859477,119.26,119.25,7.56216157]
[1743923286706,17.27859477,119.26,119.25,7.84648471]
[1743923286909,17.27859477,119.26,119.25,7.56216157]
[1743923287760,17.27859477,119.26,119.25,26.49613357]
[1743923288456,17.27859477,119.26,119.25,26.21181043]
[1743923288817,17.27859477,119.26,119.25,26.49613357]
[1743923293036,17.27859477,119.26,119.25,7.84648471]
[1743923294450,17.27859477,119.26,119.25,7.90948471]
[1743923295255,23.14809477,119.26,119.25,0.063]
[1743923295743,28.1263,119.22,119.21,0.063]
[1743923295932,44.90489477,119.22,119.21,0.063]
[1743923296638,50.77629477,119.22,119.21,0.063]
[1743923297244,117.89067385,119.22,119.21,0.063]
[1743923297634,17.27859477,119.2,119.19,52.18322176]
[1743923298146,17.27859477,119.2,119.19,52.60970647]
[1743923298724,17.27859477,119.2,119.19,0.42648471]
[1743923298923,0.5,119.19,119.18,0.063]
[1743923299124,17.27859477,119.19,119.18,0.063]
[1743923300242,81.8,119.18,119.14,0.063]
[1743923300444,17.27859477,119.15,119.14,0.20516157]
[1743923300945,17.27859477,119.15,119.14,0.063]
[1743923301127,23.15349477,119.15,119.14,0.063]
[1743923301723,17.27859477,119.15,119.14,0.063]
[1743923302136,23.15349477,119.15,119.14,0.063]
[1743923302443,43.27859477,119.15,119.14,0.063]
[1743923306857,49.15349477,119.15,119.14,0.063]
[1743923307732,43.27859477,119.15,119.14,0.063]
[1743923309239,49.15349477,119.15,119.14,0.063]
[1743923309954,43.27859477,119.15,119.14,0.063]
[1743923310450,17.27859477,119.15,119.14,0.48948471]
[1743923310848,17.27859477,119.15,119.14,0.063]
[1743923311049,43.27859477,119.15,119.14,0.063]
[1743923312931,49.15349477,119.15,119.14,0.063]
[1743923313253,43.27859477,119.15,119.14,0.063]
[1743923314050,110.39297385,119.15,119.14,0.063]
[1743923314757,116.26787385,119.15,119.14,0.063]
[1743923314942,49.15349477,119.15,119.14,0.063]
[1743923315143,43.27859477,119.15,119.14,0.063]
[1743923317357,26.5,119.13,119.12,0.063]
[1743923317555,49.15449477,119.13,119.12,0.063]
[1743923318151,130.95449477,119.13,119.12,0.063]
[1743923320240,125.07859477,119.13,119.12,0.063]
[1743923322669,99.07859477,119.13,119.12,0.063]
[1743923323858,99.07859477,119.13,119.12,18.71264886]
[1743923325159,81.8,119.13,119.12,19.13913357]
[1743923325366,99.07859477,119.13,119.12,19.13913357]
[1743923325560,98.57859477,119.13,119.12,19.13913357]
[1743923325747,99.07859477,119.13,119.12,19.13913357]
[1743923325941,98.57859477,119.13,119.12,19.13913357]
[1743923326146,99.07859477,119.13,119.12,19.13913357]
[1743923326765,81.8,119.13,119.12,19.13913357]
[1743923327075,98.57859477,119.13,119.12,19.13913357]
[1743923327971,81.8,119.13,119.12,25.01553357]
[1743923328954,81.8,119.13,119.12,24.01553357]
[1743923329154,16.77859477,119.15,119.13,0.42648471]
[1743923329340,16.77859477,119.15,119.14,7.86648471]
[1743923329545,17.27859477,119.15,119.14,7.86648471]
[1743923331468,16.77859477,119.15,119.14,7.86648471]
[1743923331669,17.27859477,119.15,119.14,7.86648471]
[1743923332148,17.27859477,119.15,119.14,26.51613357]
[1743923334870,17.30859477,119.15,119.14,26.51613357]
[1743923337554,17.30859477,119.15,119.14,32.39153357]
[1743923337871,0.53,119.15,119.14,32.39153357]
[1743923338177,0.03,119.15,119.14,32.39153357]
[1743923338572,0.53,119.15,119.14,26.51613357]
[1743923338764,17.30859477,119.15,119.14,26.51613357]
[1743923339065,0.53,119.15,119.14,26.51613357]
[1743923339272,0.03,119.15,119.14,26.51613357]
[1743923339657,0.03,119.15,119.14,32.39153357]
[1743923343179,0.03,119.15,119.14,49.17012834]
[1743923343385,0.03,119.18,119.15,19.07613357]
[1743923343558,0.03,119.18,119.15,35.85472834]
[1743923343980,0.03,119.18,119.17,19.07613357]
[1743923346383,0.03,119.18,119.17,24.95003357]
[1743923352298,0.03,119.18,119.17,41.72862834]
[1743923355001,99.07859477,119.23,119.17,56.41352834]
[1743923355188,99.07859477,119.23,119.19,35.85472834]
[1743923355507,17.27859477,119.22,119.19,19.07613357]
[1743923355900,16.77859477,119.21,119.19,18.79181043]
[1743923356090,16.77859477,119.21,119.2,0.28432314]
[1743923356582,17.27859477,119.22,119.2,0.28432314]
[1743923356789,99.07859477,119.23,119.2,0.28432314]
[1743923357179,99.07859477,119.23,119.21,0.14216157]
[1743923357484,99.07859477,119.23,119.22,26.02964886]
[1743923357485,82.3,119.23,119.22,26.02964886]
[1743923357671,99.07859477,119.23,119.22,26.02964886]
[1743923360296,99.07859477,119.23,119.22,26.45613357]
[1743923361199,99.10859477,119.23,119.22,26.45613357]
[1743923363401,0.03,119.23,119.22,26.45613357]
[1743923363704,0.03,119.23,119.22,32.32753357]
[1743923365302,0.53,119.23,119.22,26.45613357]
[1743923365481,0.03,119.23,119.22,26.45613357]
[1743923366298,0.03,119.23,119.22,32.32753357]
[1743923368687,0.03,119.23,119.22,49.10612834]
[1743923369510,0.03,119.26,119.23,19.07613357]
[1743923369717,0.03,119.26,119.25,19.07613357]
[1743923370490,0.03,119.26,119.25,0.28432314]
[1743923370997,16.80859477,119.26,119.25,7.64432314]
[1743923371203,17.30859477,119.26,119.25,7.64432314]
[1743923377530,23.17809477,119.26,119.25,7.64432314]
[1743923377822,23.17809477,119.26,119.25,7.78648471]
[1743923378614,0.5,119.22,119.2,0.14216157]
[1743923378818,0.5,119.22,119.21,7.64432314]
[1743923379315,17.27859477,119.23,119.22,0.42648471]
[1743923380201,17.27859477,119.23,119.22,0.14216157]
[1743923381138,17.27859477,119.23,119.22,0.42648471]
[1743923382421,23.14959477,119.23,119.22,0.14216157]
[1743923382719,0.5,119.21,119.2,0.14216157]
[1743923382909,17.27859477,119.21,119.2,19.07613357]
[1743923385404,0.5,119.22,119.2,19.07613357]
[1743923385727,17.27859477,119.23,119.2,24.94843357]
[1743923386635,0.5,119.23,119.2,24.94843357]
[1743923387122,0.5,119.22,119.2,25.01143357]
[1743923388521,17.27859477,119.23,119.2,25.01143357]
[1743923388720,0.5,119.22,119.2,25.01143357]
[1743923388927,17.27859477,119.23,119.2,25.01143357]
[1743923389326,0.5,119.22,119.2,25.01143357]
[1743923391330,17.27859477,119.23,119.2,25.01143357]
[1743923392126,0.5,119.23,119.2,25.01143357]
[1743923392429,99.07859477,119.25,119.2,41.79002834]
[1743923392818,82.3,119.25,119.2,56.47122834]
[1743923393012,82.3,119.25,119.22,19.07613357]
[1743923393326,81.8,119.25,119.24,0.42648471]
[1743923393526,82.3,119.25,119.24,0.42648471]
[1743923393728,99.07859477,119.25,119.24,0.42648471]
[1743923393910,82.3,119.25,119.24,0.42648471]
[1743923394316,99.07859477,119.25,119.24,0.42648471]
[1743923395135,82.3,119.25,119.24,0.42648471]
[1743923395329,99.07859477,119.25,119.24,0.42648471]
[1743923395927,82.3,119.25,119.24,0.42648471]
[1743923396425,81.8,119.25,119.24,19.07613357]
[1743923396638,0.03,119.26,119.24,19.07613357]
[1743923396804,0.03,119.26,119.24,24.94663357]
[1743923398033,0.03,119.26,119.24,41.72522834]
[1743923398423,0.03,119.26,119.24,24.94663357]
[1743923398926,0.03,119.26,119.24,41.72522834]
[1743923399914,0.03,119.25,119.24,41.72522834]
[1743923400433,0.03,119.25,119.24,24.94663357]
[1743923400735,0.03,119.25,119.24,19.07613357]
[1743923401243,0.03,119.25,119.24,24.94663357]
[1743923402823,0.03,119.25,119.24,19.07613357]
[1743923403240,0.03,119.25,119.24,24.94663357]
[1743923408036,0.03,119.25,119.24,19.07613357]
[1743923408220,17.30859477,119.25,119.24,19.07613357]
[1743923408621,0.53,119.25,119.24,19.07613357]
[1743923409023,0.53,119.25,119.24,26.37613357]
[1743923410140,0.53,119.25,119.24,19.07613357]
[1743923410440,0.53,119.25,119.24,26.37613357]
[1743923417349,17.30859477,119.25,119.24,26.37613357]
[1743923417642,17.30859477,119.25,119.24,26.35613357]
[1743923418041,23.17859477,119.25,119.24,26.35613357]
[1743923419150,0.5,119.24,119.23,0.063]
[1743923419338,17.27859477,119.24,119.23,18.85481043]
[1743923419645,17.27859477,119.24,119.23,19.13913357]
[1743923420353,23.14909477,119.24,119.23,0.063]
[1743923420933,29.69719477,119.24,119.23,0.063]
[1743923425243,26.5,119.21,119.2,0.063]
[1743923425431,43.27859477,119.21,119.2,0.063]
[1743923426738,43.27859477,119.21,119.2,19.13913357]
[1743923428755,0.5,119.21,119.2,19.13913357]
[1743923428940,82.3,119.23,119.2,25.01153357]
[1743923429138,0.5,119.22,119.2,25.01153357]
[1743923429940,82.3,119.23,119.2,25.01153357]
[1743923430364,99.07859477,119.23,119.2,25.01153357]
[1743923430658,0.5,119.21,119.2,19.13913357]
[1743923439168,17.27859477,119.21,119.2,19.13913357]
[1743923441574,17.27859477,119.21,119.2,26.41913357]
[1743923445369,26.5,119.21,119.2,26.41913357]
[1743923445571,43.27859477,119.21,119.2,26.41913357]
[1743923450775,26.5,119.21,119.2,26.41913357]
[1743923451775,0.5,119.21,119.2,26.41913357]
[1743923451978,82.33,119.23,119.2,32.29153357]
[1743923452180,82.33,119.23,119.2,49.07012834]
[1743923452369,0.53,119.23,119.2,50.60542834]
[1743923452567,0.03,119.23,119.2,50.60542834]
[1743923453481,0.03,119.23,119.22,19.07613357]
[1743923453686,0.03,119.23,119.22,17.20507948]
[1743923453858,0.03,119.23,119.22,41.72612834]
[1743923454059,0.03,119.23,119.22,24.94753357]
[1743923455168,0.03,119.23,119.22,41.72612834]
[1743923455369,0.03,119.23,119.22,24.94753357]
[1743923461266,0.03,119.23,119.22,19.07613357]
[1743923461467,0.53,119.23,119.22,19.07613357]
[1743923462066,0.53,119.23,119.22,26.33613357]
[1743923462900,0.53,119.23,119.22,32.20753357]
[1743923463196,0.03,119.23,119.22,48.98612834]
[1743923466703,0.03,119.23,119.22,49.04912834]
[1743923467681,0.03,119.25,119.24,0.42648471]
[1743923467881,0.03,119.25,119.24,35.85472834]
[1743923468795,0.03,119.25,119.24,19.07613357]
[1743923469783,0.03,119.25,119.24,24.94663357]
[1743923469984,0.03,119.25,119.24,18.79181043]
[1743923470191,0.53,119.25,119.24,18.79181043]
[1743923470499,0.53,119.25,119.24,19.07613357]
[1743923471593,0.03,119.25,119.24,19.07613357]
[1743923471791,0.53,119.25,119.24,19.07613357]
[1743923472499,0.53,119.25,119.24,24.94663357]
[1743923472991,0.53,119.25,119.24,19.07613357]
[1743923473707,17.30859477,119.25,119.24,19.07613357]
[1743923473895,17.30859477,119.25,119.22,0.063]
[1743923473896,0.5,119.24,119.22,0.063]
[1743923474200,43.27859477,119.23,119.22,0.20516157]
[1743923474383,43.27859477,119.23,119.22,19.13913357]
[1743923474575,49.14959477,119.23,119.22,0.063]
[1743923474777,55.25739477,119.23,119.22,0.063]
[1743923477906,71.54359477,119.23,119.2,0.063]
[1743923478105,17.27859477,119.21,119.2,0.063]
[1743923479010,17.27859477,119.21,119.2,19.13913357]
[1743923479509,0.5,119.21,119.2,19.13913357]
[1743923479914,17.27859477,119.21,119.2,19.13913357]
[1743923484711,87.6715,119.22,119.21,19.07613357]
[1743923484712,82.3,119.22,119.21,19.07613357]
[1743923485010,81.8,119.22,119.21,19.07613357]
[1743923485309,0.53,119.23,119.21,19.07613357]
[1743923485915,0.5,119.22,119.21,19.07613357]
[1743923486714,0.53,119.23,119.21,24.94783357]
[1743923489121,0.03,119.23,119.21,41.72642834]
[1743923489613,0.03,119.23,119.22,16.77859477]
[1743923489795,0.03,119.23,119.22,35.85472834]
[1743923490199,0.03,119.23,119.22,42.31562834]
[1743923490404,0.03,119.25,119.23,19.07613357]
[1743923490605,0.03,119.25,119.24,43.11472834]
[1743923491213,0.03,119.25,119.24,48.98522834]
[1743923493627,0.03,119.25,119.24,32.20663357]
[1743923493833,0.53,119.25,119.24,26.05181043]
[1743923494319,0.53,119.25,119.24,26.33613357]
[1743923494714,0.53,119.25,119.24,48.98522834]
[1743923494715,0.03,119.25,119.24,48.98522834]
[1743923500438,0.03,119.25,119.24,32.20663357]
[1743923505235,0.03,119.25,119.24,48.98522834]
[1743923509724,0.53,119.25,119.24,18.79181043]
[1743923509930,0.53,119.25,119.24,26.07181043]
[1743923510137,0.53,119.25,119.24,26.35613357]
[1743923511143,0.53,119.25,119.24,26.07181043]
[1743923511445,0.53,119.25,119.24,26.35613357]
[1743923514856,0.03,119.25,119.24,32.22663357]
[1743923515026,0.03,119.25,119.24,49.00522834]
[1743923517752,0.03,119.25,119.24,99.41522834]
[1743923518051,0.03,119.25,119.24,49.00522834]
[1743923519661,0.03,119.25,119.24,32.22663357]
[1743923519842,0.03,119.25,119.24,31.94231043]
[1743923520155,0.53,119.25,119.24,26.07181043]
[1743923520948,0.53,119.25,119.24,26.35613357]
[1743923521132,0.53,119.25,119.24,26.07181043]
[1743923521450,0.53,119.25,119.24,26.35613357]
[1743923525650,0.53,119.25,119.24,32.22663357]
[1743923528038,0.53,119.25,119.24,26.35613357]
[1743923529047,0.53,119.25,119.24,32.22663357]
[1743923529649,0.53,119.25,119.24,26.35613357]
[1743923532453,0.53,119.25,119.24,32.22663357]
[1743923535369,0.53,119.25,119.24,19.07613357]
[1743923535548,0.53,119.25,119.24,26.31613357]
[1743923538790,0.53,119.25,119.24,32.18663357]
[1743923539580,0.03,119.25,119.24,32.18663357]
[1743923542270,0.53,119.25,119.24,32.18663357]
[1743923542579,0.03,119.25,119.24,32.18663357]
[1743923542791,0.03,119.25,119.24,48.96522834]
[1743923546389,0.03,119.25,119.24,62.02673845]
[1743923550482,0.03,119.25,119.24,45.24814368]
[1743923551366,0.03,119.25,119.24,32.18663357]
[1743923554788,0.03,119.25,119.24,48.96522834]
[1743923558494,0.03,119.25,119.24,32.18663357]
[1743923561591,0.03,119.25,119.24,48.96522834]
[1743923561764,0.03,119.26,119.25,19.07613357]
[1743923563492,0.03,119.26,119.25,24.94613357]
[1743923568604,0.03,119.26,119.25,41.72472834]
[1743923575805,0.03,119.26,119.25,24.94613357]
[1743923577505,0.03,119.26,119.25,41.72472834]
[1743923579712,0.03,119.26,119.25,92.13472834]
[1743923579884,0.03,119.26,119.25,41.72472834]
[1743923582189,0.03,119.26,119.25,41.78772834]
[1743923582510,16.80859477,119.26,119.25,24.72481043]
[1743923583017,0.03,119.26,119.25,25.00913357]
[1743923584394,0.03,119.26,119.25,32.22913357]
[1743923590123,0.03,119.26,119.25,45.41029976]
[1743923601809,0.03,119.26,119.25,39.25597662]
[1743923602626,0.03,119.26,119.25,39.54029976]
[1743923603032,0.03,119.26,119.25,26.35913357]
[1743923603909,16.80859477,119.26,119.25,26.35913357]
[1743923606366,0.03,119.26,119.25,32.22913357]
[1743923614449,0.03,119.26,119.25,45.41029976]
[1743923616246,1.5918,119.3,119.25,45.41029976]
[1743923616247,0.03,119.3,119.26,0.28432314]
[1743923616431,0.03,119.3,119.29,35.85472834]
[1743923616641,0.03,119.3,119.29,43.07472834]
[1743923617842,0.03,119.3,119.29,26.29613357]
[1743923618451,0.03,119.3,119.29,77.51782034]
[1743923620124,81.83,119.33,119.31,0.42648471]
[1743923620324,98.60859477,119.33,119.31,0.42648471]
[1743923620652,16.77859477,119.32,119.31,0.42648471]
[1743923620873,16.77859477,119.32,119.31,0.28432314]
[1743923621363,98.60859477,119.33,119.31,0.28432314]
[1743923622145,81.83,119.33,119.32,24.94263357]
[1743923629838,0.03,119.33,119.32,24.94263357]
[1743923632541,0.53,119.34,119.33,19.07613357]
[1743923632745,0.53,119.34,119.33,26.27613357]
[1743923633062,17.30859477,119.34,119.33,26.27613357]
[1743923634867,0.53,119.34,119.33,32.14213357]
[1743923637559,26.53,119.34,119.33,32.14213357]
[1743923637763,0.03,119.35,119.33,48.92072834]
[1743923638863,97.66859477,119.37,119.33,48.92072834]
[1743923639734,80.89,119.37,119.33,48.92072834]
[1743923640747,97.66859477,119.37,119.33,48.92072834]
[1743923641068,97.77229477,119.37,119.33,32.14213357]
[1743923642170,97.66859477,119.37,119.33,32.14213357]
[1743923642466,97.77229477,119.37,119.33,32.14213357]
[1743923642669,97.66859477,119.37,119.33,32.14213357]
[1743923643770,97.77229477,119.37,119.33,32.14213357]
[1743923644161,16.77859477,119.34,119.33,18.79181043]
[1743923644472,16.77859477,119.34,119.33,26.27613357]
[1743923644670,16.77859477,119.34,119.33,31.85781043]
[1743923645568,80.89,119.36,119.34,0.28432314]
[1743923645747,97.66859477,119.36,119.34,0.28432314]
[1743923646174,97.66859477,119.36,119.35,24.94123357]
[1743923646671,97.77229477,119.36,119.35,24.94123357]
[1743923647075,97.66859477,119.36,119.35,24.94123357]
[1743923648485,97.77229477,119.36,119.35,24.94123357]
[1743923648675,97.77229477,119.36,119.35,19.07613357]
[1743923648980,97.77229477,119.36,119.35,18.79181043]
[1743923649158,97.77229477,119.36,119.35,26.27613357]
[1743923649484,16.88229477,119.36,119.35,26.27613357]
[1743923657961,16.88229477,119.36,119.33,0.063]
[1743923657962,26.1037,119.34,119.33,0.063]
[1743923658167,42.88229477,119.34,119.33,25.91264886]
[1743923658368,42.88229477,119.34,119.33,18.996972]
[1743923659888,42.88229477,119.34,119.33,0.063]
[1743923659889,48.74779477,119.34,119.33,0.063]
[1743923660065,0.1037,119.32,119.31,7.34216157]
[1743923660385,16.88229477,119.32,119.31,19.07613357]
[1743923668692,22.74889477,119.32,119.3,7.263]
[1743923668912,16.88229477,119.31,119.3,19.13913357]
[1743923669510,16.77859477,119.31,119.3,19.13913357]
[1743923669675,0.1037,119.33,119.3,25.00663357]
[1743923669993,16.77859477,119.32,119.31,19.07613357]
[1743923670200,42.77859477,119.32,119.31,0.42648471]
[1743923670581,42.88229477,119.32,119.31,19.07613357]
[1743923671297,42.77859477,119.32,119.31,19.07613357]
[1743923672903,42.77859477,119.32,119.31,24.94313357]
[1743923673087,42.77859477,119.32,119.31,19.07613357]
[1743923674403,42.88229477,119.32,119.31,0.20516157]
[1743923675201,42.88229477,119.32,119.31,0.48948471]
[1743923681707,42.88229477,119.32,119.31,19.13913357]
[1743923681910,42.77859477,119.32,119.31,19.13913357]
[1743923688197,16.80859477,119.33,119.32,19.07613357]
[1743923689412,16.80859477,119.33,119.32,0.42648471]
[1743923689615,16.80859477,119.33,119.32,19.07613357]
[1743923692005,16.80859477,119.33,119.32,0.42648471]
[1743923700234,16.80859477,119.33,119.32,19.07613357]
[1743923700534,22.77829477,119.33,119.31,0.063]
[1743923700734,0.1037,119.31,119.3,0.063]
[1743923701027,100.39483843,119.29,119.28,39.31513819]
[1743923701233,134.8037,119.3,119.29,18.933972]
[1743923701402,151.58229477,119.3,119.29,18.64964886]
[1743923701603,151.58229477,119.3,119.29,18.933972]
[1743923701804,151.58229477,119.3,119.29,0.28432314]
[1743923702005,151.58229477,119.3,119.28,20.38116619]
[1743923702221,16.77859477,119.29,119.28,20.66548933]
[1743923702633,16.77859477,119.29,119.28,20.38116619]
[1743923702818,16.77859477,119.29,119.28,20.52332776]
[1743923703132,16.77859477,119.29,119.28,7.62648471]
[1743923705547,16.77859477,119.29,119.28,26.27613357]
[1743923706363,134.7,119.3,119.29,19.07613357]
[1743923709858,151.47859477,119.3,119.29,19.07613357]
[1743923714789,151.47859477,119.3,119.29,19.13913357]
[1743923715590,151.47859477,119.3,119.29,0.20516157]
[1743923715771,151.58229477,119.3,119.29,26.05481043]
[1743923716085,42.56402338,119.28,119.27,33.56233239]
[1743923716260,59.34261815,119.28,119.27,33.56233239]
[1743923716459,59.34261815,119.28,119.27,33.84665553]
[1743923716871,16.77859477,119.28,119.27,33.84665553]
[1743923717452,16.77859477,119.28,119.27,7.48432314]
[1743923718081,16.77859477,119.28,119.27,26.27613357]
[1743923722075,16.88229477,119.28,119.27,7.62648471]
[1743923723069,23.58614194,119.28,119.27,7.62648471]
[1743923727498,23.58614194,119.28,119.27,7.68948471]
[1743923727983,16.88229477,119.28,119.27,7.68948471]
[1743923728999,16.88229477,119.28,119.27,0.48948471]
[1743923729193,16.77859477,119.28,119.27,7.68948471]
[1743923729697,16.77859477,119.28,119.27,26.33913357]
[1743923731596,23.56720965,119.28,119.27,26.33913357]
[1743923732000,16.77859477,119.28,119.27,26.33913357]
[1743923733787,23.58393862,119.28,119.27,26.33913357]
[1743923736002,16.77859477,119.28,119.27,26.33913357]
[1743923737884,23.44006623,119.28,119.27,26.33913357]
[1743923739396,26.0,119.26,119.25,7.263]
[1743923739596,42.88229477,119.26,119.23,0.063]
[1743923739899,16.77859477,119.24,119.23,26.196972]
[1743923740300,16.77859477,119.24,119.23,25.91264886]
[1743923740715,16.77859477,119.24,119.23,26.196972]
[1743923741013,16.77859477,119.24,119.23,25.91264886]
[1743923741216,16.77859477,119.24,119.23,18.71264886]
[1743923741398,16.77859477,119.24,119.23,19.13913357]
[1743923741721,16.77859477,119.24,119.23,18.85481043]
[1743923742019,16.77859477,119.24,119.23,19.13913357]
[1743923742186,16.77859477,119.24,119.23,18.85481043]
[1743923742386,16.77859477,119.24,119.23,19.13913357]
[1743923743615,20.91037806,119.24,119.23,19.13913357]
[1743923744127,16.77859477,119.24,119.23,19.13913357]
[1743923753218,4.13212974,119.27,119.23,19.13913357]
[1743923753418,4.13212974,119.27,119.24,19.07613357]
[1743923753419,26.0,119.27,119.24,19.07613357]
[1743923753623,16.77859477,119.25,119.24,19.07613357]
[1743923754124,16.80859477,119.25,119.24,19.07613357]
[1743923757329,0.03,119.25,119.24,19.07613357]
[1743923757628,16.77859477,119.25,119.24,19.07613357]
[1743923759825,98.57859477,119.26,119.24,19.07613357]
[1743923762228,16.77859477,119.25,119.24,19.07613357]
[1743923763337,81.8,119.26,119.24,19.07613357]
[1743923763533,16.77859477,119.25,119.24,19.07613357]
[1743923764934,81.840159,119.26,119.24,19.07613357]
[1743923765244,81.840159,119.26,119.25,0.3963]
[1743923765832,57.928059,119.26,119.25,37.78442157]
[1743923767345,57.928059,119.26,119.25,43.65442157]
[1743923767522,57.928059,119.26,119.25,37.78442157]
[1743923767845,57.958059,119.26,119.25,37.78442157]
[1743923768150,57.958059,119.26,119.25,43.65442157]
[1743923769014,0.070159,119.26,119.25,43.65442157]
[1743923769542,25.643859,119.27,119.26,19.47243357]
[1743923769752,25.643859,119.27,119.26,28.20569822]
[1743923771637,42.80859477,119.29,119.26,28.20569822]
[1743923772021,26.03,119.29,119.26,28.20569822]
[1743923772220,26.0,119.27,119.26,28.20569822]
[1743923772623,26.0,119.27,119.26,44.98429299]
[1743923772944,26.03,119.29,119.28,20.99533357]
[1743923775115,26.03,119.29,119.28,19.07613357]
[1743923775316,42.80859477,119.29,119.28,25.99181043]
[1743923775619,42.80859477,119.29,119.28,19.07613357]
[1743923775817,42.80859477,119.29,119.28,26.27613357]
[1743923777949,100.69649477,119.29,119.28,26.27613357]
[1743923785134,100.69649477,119.29,119.28,25.99181043]
[1743923785546,100.69649477,119.29,119.28,26.27613357]
[1743923793359,83.9179,119.29,119.28,26.27613357]
[1743923793539,100.69649477,119.29,119.28,26.27613357]
[1743923797237,100.69649477,119.29,119.28,25.99181043]
[1743923797440,141.91457385,119.29,119.27,0.063]
[1743923797635,26.0,119.26,119.25,26.36233239]
[1743923797939,44.35179477,119.26,119.24,0.063]
[1743923798165,16.77859477,119.25,119.23,52.78766479]
[1743923798362,27.5732,119.26,119.23,71.43731365]
[1743923798363,42.77859477,119.24,119.23,71.43731365]
[1743923799571,42.77859477,119.24,119.23,71.57947522]
[1743923800179,42.77859477,119.24,119.23,71.86379836]
[1743923800357,42.77859477,119.24,119.23,19.13913357]
[1743923801677,81.8,119.25,119.24,19.07613357]
[1743923801974,81.8,119.25,119.24,19.47243357]
[1743923806783,81.8,119.25,119.24,0.28432314]
[1743923806960,81.8,119.25,119.24,19.07613357]
[1743923806961,98.57859477,119.25,119.24,19.07613357]
[1743923807168,98.57859477,119.25,119.24,18.79181043]
[1743923807381,98.57859477,119.25,119.24,0.42648471]
[1743923813397,98.57859477,119.25,119.24,7.62648471]
[1743923816672,98.57859477,119.25,119.24,0.42648471]
[1743923816872,16.88229477,119.25,119.24,0.42648471]
[1743923817093,23.25039477,119.25,119.24,0.42648471]
[1743923818797,23.25039477,119.25,119.24,0.48948471]
[1743923819188,23.28039477,119.25,119.24,0.48948471]
[1743923821996,23.17669477,119.25,119.24,0.48948471]
[1743923822501,23.28039477,119.25,119.24,0.48948471]
[1743923823174,16.91229477,119.25,119.24,0.48948471]
[1743923823378,16.80859477,119.25,119.24,0.48948471]
[1743923824189,16.91229477,119.25,119.24,0.48948471]
[1743923825606,16.80859477,119.25,119.24,0.48948471]
[1743923825796,16.91229477,119.25,119.24,0.48948471]
[1743923826589,26.1037,119.23,119.22,0.063]
[1743923826889,26.0,119.22,119.21,0.063]
[1743923827083,109.89297385,119.22,119.21,0.063]
[1743923827600,111.44977385,119.22,119.21,0.063]
[1743923827816,0.1037,119.2,119.19,0.063]
[1743923828004,16.88229477,119.2,119.18,0.063]
[1743923828406,42.88229477,119.19,119.18,0.063]
[1743923828813,42.77859477,119.19,119.18,19.13913357]
[1743923829304,26.0,119.19,119.18,19.13913357]
[1743923833094,42.77859477,119.19,119.18,19.13913357]
[1743923833500,42.77859477,119.19,119.18,18.85481043]
[1743923833815,42.77859477,119.19,119.18,26.33913357]
[1743923834111,42.77859477,119.19,119.18,26.05481043]
[1743923834311,42.77859477,119.19,119.18,26.33913357]
[1743923834517,26.0,119.19,119.18,26.33913357]
[1743923835323,42.77859477,119.19,119.18,26.33913357]
[1743923836421,26.0,119.19,119.18,26.33913357]
[1743923837718,42.77859477,119.19,119.18,26.33913357]
[1743923839421,42.77859477,119.19,119.18,0.20516157]
[1743923839607,42.88229477,119.19,119.18,0.20516157]
[1743923839804,42.88229477,119.19,119.18,0.48948471]
[1743923840011,42.88229477,119.19,119.18,0.20516157]
[1743923840618,42.88229477,119.19,119.18,0.48948471]
[1743923847131,42.77859477,119.19,119.18,0.48948471]
[1743923849227,42.88229477,119.19,119.18,0.48948471]
[1743923852730,49.44632704,119.19,119.18,0.48948471]
[1743923853713,49.47632704,119.19,119.18,0.48948471]
[1743923854936,55.34922704,119.19,119.15,0.063]
[1743923855128,42.88229477,119.16,119.15,0.063]
[1743923856534,42.77859477,119.14,119.13,0.063]
[1743923856724,42.88229477,119.14,119.13,0.063]
[1743923858913,42.77859477,119.14,119.13,19.13913357]